bitfinex/quotes_ETHUSD_20250326
["timestamp","ask_amount","ask_price","bid_price","bid_amount"]
[1742963857423,1.14175603,2058.8,2058.6,4.85765]
[1742963857764,0.27539499,2058.7,2058.6,4.85765]
[1742963858063,1.14175603,2058.8,2058.6,4.85765]
[1742963858240,0.27539499,2058.7,2058.6,4.85765]
[1742963858418,1.14175603,2058.8,2058.6,4.85765]
[1742963858623,0.27539499,2058.7,2058.6,4.85765]
[1742963858823,1.14175603,2058.8,2058.6,4.85765]
[1742963859023,0.27539499,2058.7,2058.6,4.85765]
[1742963859253,1.14175603,2058.9,2058.7,4.85741]
[1742963859424,0.27578619,2058.8,2058.7,4.85741]
[1742963860754,0.27578619,2058.8,2058.6,15.3189]
[1742963860755,0.27578619,2058.8,2058.6,5.6765]
[1742963861366,0.27578619,2058.8,2058.7,4.85743]
[1742963864276,0.27578619,2058.8,2058.6,5.6765]
[1742963864439,0.27578619,2058.8,2058.6,4.8576]
[1742963864641,1.41754222,2058.8,2058.6,4.8576]
[1742963866572,5.61287,2058.6,2058.5,6.1399962]
[1742963866751,6.75462603,2058.6,2058.2,10.9984662]
[1742963866940,1.14175603,2058.5,2058.2,15.8569062]
[1742963867374,0.27376004,2058.4,2058.2,15.8569062]
[1742963867777,0.27376004,2058.4,2058.3,4.85837]
[1742963868073,1.89695603,2058.6,2058.3,4.85837]
[1742963868262,0.27366781,2058.4,2058.3,4.85837]
[1742963868570,1.14175603,2058.5,2058.3,4.85837]
[1742963868743,0.27366781,2058.4,2058.3,4.85837]
[1742963869365,0.7552,2058.6,2058.3,4.85837]
[1742963869572,0.27366781,2058.4,2058.3,4.85837]
[1742963869773,0.7552,2058.6,2058.3,4.85837]
[1742963869973,0.27366781,2058.4,2058.3,4.85837]
[1742963870170,0.7552,2058.6,2058.3,4.85837]
[1742963870379,0.27366781,2058.4,2058.3,4.85837]
[1742963870556,0.7552,2058.6,2058.3,4.85837]
[1742963870756,0.27366781,2058.4,2058.3,4.85837]
[1742963870957,0.7552,2058.6,2058.3,4.85837]
[1742963871159,0.27366781,2058.4,2058.3,4.85837]
[1742963871358,0.7552,2058.6,2058.3,4.85837]
[1742963871560,0.27366781,2058.4,2058.3,4.85837]
[1742963871760,0.7552,2058.6,2058.3,4.85837]
[1742963871963,0.27366781,2058.4,2058.3,4.85837]
[1742963872146,0.7552,2058.6,2058.3,4.85837]
[1742963872353,0.27366781,2058.4,2058.3,4.85837]
[1742963872547,0.7552,2058.6,2058.3,4.85837]
[1742963872781,0.27366781,2058.4,2058.3,4.85837]
[1742963872978,0.7552,2058.6,2058.3,4.85837]
[1742963873183,0.27366781,2058.4,2058.3,4.85837]
[1742963873380,0.7552,2058.6,2058.3,4.85837]
[1742963873555,0.27366781,2058.4,2058.3,4.85837]
[1742963873754,0.7552,2058.6,2058.3,4.85837]
[1742963874084,2.12202771,2058.6,2058.3,4.85837]
[1742963874285,0.27405915,2058.5,2058.2,11.94933897]
[1742963874489,0.27405915,2058.5,2058.3,4.85835]
[1742963875385,0.27405915,2058.5,2058.2,11.94933897]
[1742963875588,0.27405915,2058.5,2058.2,16.80785897]
[1742963875789,0.27405915,2058.5,2058.2,11.94933897]
[1742963876394,0.27405915,2058.5,2058.3,4.85835]
[1742963877960,0.27405915,2058.5,2058.2,11.94933897]
[1742963878557,7.17140905,2058.5,2058.2,7.09089897]
[1742963878761,11.73040905,2058.5,2058.2,7.09089897]
[1742963879088,13.60142473,2058.5,2058.2,7.09089897]
[1742963879769,13.60142473,2058.5,2058.0,10.9990562]
[1742963879971,5.61102,2058.4,2058.0,10.9990562]
[1742963880501,0.27135211,2058.3,2058.1,0.9725216]
[1742963880668,0.27135211,2058.3,2058.0,10.9990562]
[1742963881269,0.27135211,2058.3,2058.0,10.9990162]
[1742963881793,7.16926201,2058.3,2058.0,6.1399962]
[1742963882093,9.09029178,2058.3,2058.0,6.1399962]
[1742963882393,4.23177178,2058.3,2058.0,10.9990762]
[1742963883492,4.23177178,2058.3,2058.0,6.1399962]
[1742963884591,4.23177178,2058.3,2058.0,10.9990262]
[1742963884766,2.31074201,2058.3,2058.0,10.9990262]
[1742963887405,0.27135211,2058.3,2058.1,4.85871]
[1742963888612,0.27135211,2058.3,2058.0,11.7775662]
[1742963889502,0.27135211,2058.3,2058.1,4.85876]
[1742963891013,1.41363356,2058.3,2058.1,4.85876]
[1742963893210,1.41363356,2058.3,2058.0,11.7775262]
[1742963893403,1.41363356,2058.3,2058.1,4.85876]
[1742963895520,0.27135211,2058.3,2058.1,4.85876]
[1742963897086,1.41363356,2058.3,2058.0,11.7775262]
[1742963897491,1.41363356,2058.3,2058.0,11.7774062]
[1742963898027,1.41363356,2058.3,2058.0,26.2774062]
[1742963898191,1.41363356,2058.3,2058.1,4.85884]
[1742963901896,1.41363356,2058.3,2058.1,4.8587]
[1742963902125,0.27135211,2058.3,2058.1,4.8587]
[1742963903807,0.27135211,2058.3,2058.1,4.85868]
[1742963906706,0.27135211,2058.3,2058.2,5.62281]
[1742963906905,0.27135211,2058.3,2058.2,13.32610212]
[1742963907110,1.93268145,2059.2,2058.6,0.7642]
[1742963907334,4.558,2059.1,2059.0,4.85672]
[1742963907502,4.83243271,2059.1,2059.0,4.85672]
[1742963908120,4.83243271,2059.1,2058.9,4.85693]
[1742963909301,5.97471416,2059.1,2058.9,4.85693]
[1742963912935,5.97471416,2059.1,2058.8,10.66595963]
[1742963913136,1.14228145,2059.0,2058.8,10.66595963]
[1742963913450,0.27474945,2058.9,2058.8,5.80877963]
[1742963914637,1.14228145,2059.0,2058.8,4.85708]
[1742963914839,0.27474945,2058.9,2058.8,4.85708]
[1742963916665,5.70028145,2059.1,2058.8,4.85708]
[1742963916844,0.27514064,2059.0,2058.8,4.85708]
[1742963917045,0.27514064,2059.0,2058.8,9.71419]
[1742963917046,1.41742209,2059.0,2058.8,9.71419]
[1742963917659,1.41742209,2059.0,2058.8,4.85708]
[1742963925788,0.27514064,2059.0,2058.9,4.85696]
[1742963926563,0.27514064,2059.0,2058.8,4.85704]
[1742963926794,0.27514064,2059.0,2058.9,4.85696]
[1742963926995,0.27514064,2059.0,2058.8,4.8571]
[1742963927790,1.14228145,2058.9,2058.8,4.8571]
[1742963928000,1.14228145,2058.9,2058.7,4.85729]
[1742963928293,1.40053906,2058.9,2058.7,4.85729]
[1742963928958,1.40053906,2058.9,2058.7,9.71453]
[1742963930016,0.25825761,2058.9,2058.8,0.758]
[1742963930314,1.14228145,2059.0,2058.7,4.85722]
[1742963930490,0.25782399,2058.9,2058.8,4.85719]
[1742963931204,5.70028145,2059.1,2058.9,4.85687]
[1742963931709,0.25915979,2059.0,2058.9,4.85687]
[1742963935303,0.25915979,2059.0,2058.9,5.904076]
[1742963935505,0.25915979,2059.0,2058.9,12.0440722]
[1742963935690,1.14228145,2059.3,2059.1,4.85638]
[1742963937399,1.14228145,2059.3,2059.1,4.85644]
[1742963938013,5.3704,2059.4,2059.1,4.85644]
[1742963938189,5.3704,2059.4,2059.1,4.85634]
[1742963938512,6.51268145,2059.4,2059.1,4.85634]
[1742963939093,0.263214,2059.3,2059.1,4.85634]
[1742963940214,1.40549545,2059.3,2059.1,4.85634]
[1742963941714,0.263214,2059.3,2059.1,6.54636622]
[1742963941887,0.263214,2059.3,2059.2,4.85625]
[1742963942087,5.69728145,2059.5,2059.3,4.85596]
[1742963942282,0.26347065,2059.4,2059.3,4.85596]
[1742963943621,5.69728145,2059.6,2059.3,4.85596]
[1742963943799,0.26430031,2059.4,2059.3,4.85596]
[1742963944000,1.14228145,2059.5,2059.3,4.85596]
[1742963944219,0.26439245,2059.4,2059.3,4.85596]
[1742963944516,0.26439245,2059.4,2059.2,4.85625]
[1742963944517,1.04619245,2059.4,2059.1,1.69002622]
[1742963944717,1.4066739,2059.4,2059.3,4.85601]
[1742963944919,0.26439245,2059.4,2059.3,4.85601]
[1742963945219,1.14228145,2059.7,2059.4,4.85557]
[1742963945397,1.14228145,2059.7,2059.5,4.85553]
[1742963945909,8.69728145,2059.8,2059.5,4.85546]
[1742963946113,8.69728145,2059.8,2059.3,0.8242]
[1742963946114,8.69728145,2059.8,2059.6,4.85525]
[1742963946419,34.51108145,2059.9,2059.7,4.85507]
[1742963946602,28.032,2059.9,2059.7,4.85507]
[1742963946801,5.69728145,2060.0,2059.7,4.85507]
[1742963947207,0.26710863,2059.9,2059.7,4.85507]
[1742963947412,1.40939008,2059.9,2059.7,4.85507]
[1742963947611,1.14228145,2059.8,2059.5,5.67952]
[1742963947924,1.14228145,2059.8,2059.5,6.03727162]
[1742963947925,1.14228145,2059.7,2059.5,6.03727162]
[1742963948127,1.40713685,2059.7,2059.5,6.03727162]
[1742963948325,1.40713685,2059.7,2059.5,1.18195162]
[1742963948529,1.40713685,2059.7,2059.5,6.03748162]
[1742963949097,0.2648554,2059.7,2059.5,6.03748162]
[1742963949294,1.92408145,2059.8,2059.5,1.18195162]
[1742963949498,1.40713685,2059.7,2059.4,11.95725019]
[1742963950231,0.2648554,2059.7,2059.4,11.95725019]
[1742963950397,1.92408145,2059.8,2059.4,11.95725019]
[1742963950598,0.26446453,2059.6,2059.4,11.95725019]
[1742963950798,1.92408145,2059.8,2059.4,11.95725019]
[1742963950999,0.26407361,2059.5,2059.4,13.83522435]
[1742963951695,1.14228145,2059.7,2059.4,13.83522435]
[1742963951897,0.26446453,2059.6,2059.4,13.83522435]
[1742963952318,0.26446453,2059.6,2059.5,4.85554]
[1742963953003,0.26446453,2059.6,2059.4,13.83522435]
[1742963953404,1.14228145,2059.5,2059.4,6.1399962]
[1742963953934,1.40704741,2059.5,2059.4,6.1399962]
[1742963956547,1.40704741,2059.5,2059.2,9.71215]
[1742963956716,1.40704741,2059.5,2059.2,4.85607]
[1742963957035,1.40704741,2059.5,2059.1,4.85647]
[1742963957036,1.14228145,2059.3,2059.1,4.85647]
[1742963957215,1.14228145,2059.4,2059.2,4.85623]
[1742963957411,1.14228145,2059.5,2059.1,11.99036662]
[1742963957731,0.7965,2059.6,2059.2,4.85607]
[1742963957932,1.14228145,2059.7,2059.4,4.85567]
[1742963958114,5.69628145,2059.7,2059.4,4.85567]
[1742963958314,1.14228145,2059.6,2059.4,4.85567]
[1742963959609,1.14228145,2059.7,2059.4,4.85567]
[1742963960008,1.14228145,2059.6,2059.4,4.85567]
[1742963960739,1.14228145,2059.7,2059.5,4.85554]
[1742963960945,0.2651195,2059.6,2059.5,4.85554]
[1742963961134,0.2651195,2059.6,2059.4,4.85567]
[1742963961336,0.2651195,2059.6,2059.4,9.71129]
[1742963962144,0.2651195,2059.6,2059.5,15.97436916]
[1742963962346,1.69228145,2060.1,2059.9,4.85459]
[1742963962655,0.7965,2059.9,2059.6,14.5]
[1742963962852,1.14228145,2059.7,2059.5,10.9954262]
[1742963963068,1.14228145,2059.7,2059.5,6.1399962]
[1742963963275,0.26664797,2059.6,2059.5,6.1399962]
[1742963963423,0.26664797,2059.6,2059.5,4.85554]
[1742963963622,5.69628145,2059.8,2059.5,4.85554]
[1742963964331,0.26713089,2059.7,2059.5,4.85554]
[1742963964551,5.69628145,2059.8,2059.5,4.85554]
[1742963964720,0.26713089,2059.7,2059.5,4.85554]
[1742963964921,5.69628145,2059.8,2059.4,4.85576]
[1742963965449,1.14228145,2059.6,2059.3,11.7840062]
[1742963965622,1.14228145,2059.6,2059.3,10.9960062]
[1742963965817,0.26634921,2059.5,2059.3,25.4960062]
[1742963966020,0.26634921,2059.5,2059.3,30.3518562]
[1742963966220,0.26634921,2059.5,2059.4,4.85578]
[1742963966649,5.69628145,2059.8,2059.5,4.85547]
[1742963966924,5.69628145,2059.8,2059.6,4.85526]
[1742963967535,1.14228145,2059.7,2059.6,4.85526]
[1742963967738,5.69628145,2059.8,2059.6,4.85526]
[1742963968125,0.26742474,2059.7,2059.6,4.85526]
[1742963968326,0.26742474,2059.7,2059.5,5.66649]
[1742963968564,5.69628145,2059.8,2059.5,5.66649]
[1742963968789,0.26742474,2059.7,2059.5,5.66649]
[1742963968933,5.69628145,2059.8,2059.5,5.66649]
[1742963969125,0.26742474,2059.7,2059.5,5.66635]
[1742963969325,0.26742474,2059.7,2059.5,10.52179]
[1742963969526,3.0,2060.0,2059.6,4.85521]
[1742963969726,1.14228145,2059.9,2059.6,4.85521]
[1742963969926,1.14228145,2059.8,2059.6,4.85521]
[1742963971255,1.14228145,2059.7,2059.5,4.85535]
[1742963973427,13.47938,2060.0,2059.5,4.85535]
[1742963973623,1.14228145,2059.8,2059.5,4.85535]
[1742963974455,3.0,2060.0,2059.6,4.8551]
[1742963974659,3.0,2060.0,2059.7,4.85506]
[1742963974859,4.14228145,2060.0,2059.7,4.85506]
[1742963975124,1.14228145,2060.0,2059.7,4.85506]
[1742963977878,1.14228145,2059.8,2059.6,4.8551]
[1742963978064,1.14228145,2059.8,2059.6,9.7103]
[1742963978443,9.95716,2060.1,2059.7,4.85507]
[1742963978444,1.14228145,2059.9,2059.7,4.85507]
[1742963981595,1.14228145,2060.0,2059.7,4.85507]
[1742963981767,1.14228145,2059.9,2059.7,4.85507]
[1742963981967,1.14228145,2060.0,2059.7,12.0357762]
[1742963982163,1.69228145,2060.1,2059.8,5.64343]
[1742963982684,1.14228145,2060.0,2059.8,5.64343]
[1742963984045,1.14228145,2060.0,2059.8,4.85483]
[1742963984855,0.55,2060.1,2059.7,19.35504]
[1742963985056,1.14228145,2059.9,2059.7,4.85504]
[1742963985473,1.93438145,2060.0,2059.7,9.70992]
[1742963985673,1.93438145,2060.0,2059.7,4.85488]
[1742963985874,1.14228145,2060.0,2059.8,4.85476]
[1742963989385,1.14228145,2059.9,2059.8,4.85476]
[1742963989783,1.14228145,2059.9,2059.7,14.5]
[1742963989987,1.14228145,2059.8,2059.6,10.9951062]
[1742963990397,1.14228145,2059.9,2059.6,15.8502962]
[1742963990771,1.14228145,2059.9,2059.7,4.85506]
[1742963991671,1.14228145,2059.9,2059.6,10.9952362]
[1742963992606,1.14228145,2059.9,2059.6,15.8503462]
[1742963992914,1.14228145,2059.9,2059.6,10.9951062]
[1742963994004,1.14228145,2059.9,2059.7,4.85507]
[1742963995006,0.55,2060.1,2059.7,1.11719053]
[1742963995184,6.24428145,2060.1,2059.9,4.85459]
[1742963995386,1.14228145,2060.0,2059.9,4.85459]
[1742963995607,1.14228145,2060.0,2059.8,4.85479]
[1742963995895,1.14228145,2060.0,2059.8,4.85464]
[1742963996067,1.14228145,2060.0,2059.8,19.35464]
[1742963996272,1.14228145,2060.0,2059.9,4.8546]
[1742963996770,0.55,2060.1,2059.9,2.420924]
[1742963997001,0.55,2060.1,2060.0,4.85436]
[1742963997393,0.55,2060.1,2060.0,10.9943562]
[1742964000182,0.55,2060.1,2060.0,11.7641562]
[1742964002302,0.55,2060.1,2060.0,12.90643765]
[1742964002523,0.55,2060.1,2060.0,15.71781337]
[1742964004010,0.55,2060.1,2060.0,16.86009482]
[1742964004210,0.55,2060.1,2060.0,34.36009482]
[1742964005019,0.55,2060.1,2060.0,33.21781337]
[1742964007427,0.55,2060.1,2060.0,14.94801337]
[1742964007630,2.58519157,2060.1,2060.0,6.1399962]
[1742964007848,3.38149157,2060.1,2060.0,6.1399962]
[1742964008554,3.38149157,2060.1,2059.5,5.62532]
[1742964008555,3.38149157,2060.1,2059.6,6.1399962]
[1742964008700,2.03519157,2059.9,2059.7,4.85487]
[1742964009906,3.38149157,2060.1,2059.8,4.85484]
[1742964010112,0.55,2060.1,2060.0,4.85436]
[1742964010730,0.55,2060.1,2059.9,4.85455]
[1742964011542,0.55,2060.1,2059.9,9.70901]
[1742964012040,0.55,2060.1,2059.9,4.85446]
[1742964012336,3.73363073,2060.1,2059.9,9.70896]
[1742964012545,3.73363073,2060.1,2059.8,4.85483]
[1742964013915,0.2667877,2060.0,2059.8,9.70946]
[1742964014315,0.2667877,2060.0,2059.9,4.8546]
[1742964014852,0.2667877,2060.0,2059.8,4.85463]
[1742964015656,0.2667877,2060.0,2059.9,4.8546]
[1742964016556,0.2667877,2060.0,2059.8,9.70934]
[1742964016755,0.2667877,2060.0,2059.9,4.8546]
[1742964022699,0.2667877,2060.0,2059.8,4.85463]
[1742964024098,0.2667877,2060.0,2059.9,4.8546]
[1742964026198,0.2667877,2060.0,2059.8,4.8548]
[1742964027893,0.2667877,2060.0,2059.8,4.85465]
[1742964030599,0.2667877,2060.0,2059.7,4.85507]
[1742964030903,0.2667877,2060.0,2059.7,9.70999]
[1742964031208,0.39218174,2060.0,2059.7,9.70999]
[1742964031501,0.39218174,2060.0,2059.8,4.85481]
[1742964033810,0.39218174,2060.0,2059.7,4.85492]
[1742964033974,1.70927207,2060.0,2059.7,4.85492]
[1742964034374,2.03519157,2059.9,2059.7,4.85492]
[1742964034587,0.39049012,2059.8,2059.7,4.85492]
[1742964036093,1.17909012,2059.8,2059.6,4.8553]
[1742964036477,1.17909012,2059.8,2059.5,4.85551]
[1742964037483,6.58719157,2059.7,2059.3,4.85589]
[1742964037800,2.03519157,2059.5,2059.2,4.85617]
[1742964037994,0.38870389,2059.4,2059.3,4.85601]
[1742964038799,0.38870389,2059.4,2059.2,4.85621]
[1742964038995,0.38870389,2059.4,2059.2,9.71227]
[1742964039313,0.38870389,2059.4,2059.3,4.85601]
[1742964044418,4.552,2059.5,2059.4,4.85578]
[1742964044908,4.9396773,2059.5,2059.4,4.85578]
[1742964045218,4.9396773,2059.5,2059.3,4.85601]
[1742964046125,4.9396773,2059.5,2059.3,4.85586]
[1742964046414,4.9396773,2059.5,2059.2,4.85624]
[1742964046619,4.9396773,2059.5,2059.3,4.85588]
[1742964049624,4.9396773,2059.5,2059.4,4.85578]
[1742964049935,0.3876773,2059.5,2059.4,5.66078]
[1742964050086,0.3876773,2059.5,2059.4,7.198069]
[1742964050286,1.3247,2060.1,2060.0,4.85436]
[1742964050517,5.102,2060.1,2059.9,4.85447]
[1742964050726,5.102,2060.1,2060.0,4.85436]
[1742964051320,5.102,2060.1,2059.9,4.85447]
[1742964051912,0.7747,2060.0,2059.7,4.85485]
[1742964052086,2.03519157,2059.9,2059.7,4.85485]
[1742964052293,5.03519157,2059.9,2059.5,4.85539]
[1742964052487,0.36164372,2059.8,2059.5,4.85539]
[1742964053290,0.36164372,2059.8,2059.6,4.85525]
[1742964053628,0.36164372,2059.8,2059.7,4.85507]
[1742964054788,4.552,2060.0,2059.8,4.85483]
[1742964054985,0.36202837,2059.9,2059.8,4.85483]
[1742964058749,0.36202837,2059.9,2059.7,9.70999]
[1742964058913,0.36202837,2059.9,2059.7,9.70989]
[1742964059116,2.03519157,2059.8,2059.5,4.8555]
[1742964059608,0.36171215,2059.7,2059.5,4.8555]
[1742964059812,2.03519157,2059.8,2059.5,4.8555]
[1742964060013,0.36180276,2059.7,2059.5,4.8555]
[1742964060239,2.03519157,2059.8,2059.5,4.8555]
[1742964060480,0.36180276,2059.7,2059.5,4.8555]
[1742964060914,2.03519157,2059.8,2059.5,4.8555]
[1742964061109,0.36141806,2059.6,2059.4,10.9956562]
[1742964061311,2.03519157,2059.6,2059.3,4.85601]
[1742964061527,0.36103333,2059.5,2059.3,9.71192]
[1742964062313,0.36103333,2059.5,2059.3,4.85591]
[1742964062526,0.36103333,2059.5,2059.3,4.85588]
[1742964063234,0.36103333,2059.5,2059.4,4.85578]
[1742964063642,0.36103333,2059.5,2059.3,4.85588]
[1742964064965,0.36103333,2059.5,2059.2,5.84035858]
[1742964065324,0.36103333,2059.5,2059.0,0.7865]
[1742964065325,2.03519157,2059.3,2059.0,4.85667]
[1742964065761,0.35933706,2059.2,2059.0,4.85667]
[1742964066124,2.80979157,2059.3,2059.0,4.85667]
[1742964066325,0.35895217,2059.1,2058.9,4.85692]
[1742964066522,2.03519157,2059.1,2058.8,15.8541862]
[1742964066731,0.35856725,2059.0,2058.8,10.9969962]
[1742964066926,4.91056725,2059.0,2058.7,4.86141816]
[1742964067463,5.68516725,2059.0,2058.7,4.86129816]
[1742964067660,4.91056725,2059.0,2058.8,4.85698]
[1742964067846,4.91056725,2059.0,2058.9,4.85696]
[1742964068624,0.35856725,2059.0,2058.9,4.85696]
[1742964068871,4.85507,2059.7,2058.9,4.85696]
[1742964068872,5.62944,2059.8,2058.9,12.75527402]
[1742964069051,0.35723539,2059.0,2058.9,12.75527402]
[1742964069264,11.44364157,2059.6,2059.2,4.85619]
[1742964069464,2.03519157,2059.4,2059.0,4.85667]
[1742964069642,2.03519157,2059.2,2058.9,10.9968362]
[1742964069837,0.35730312,2059.1,2058.9,10.9968362]
[1742964070038,0.35730312,2059.1,2058.9,4.85684]
[1742964079089,0.35730312,2059.1,2058.8,10.9971862]
[1742964079752,0.35730312,2059.1,2058.9,4.85695]
[1742964079948,4.91030312,2059.1,2058.9,4.85695]
[1742964081491,4.91030312,2059.1,2058.9,9.71375]
[1742964082192,4.91030312,2059.1,2058.9,4.8568]
[1742964088892,6.05170787,2059.1,2058.9,4.8568]
[1742964090294,6.05170787,2059.1,2058.8,4.85719]
[1742964090472,6.05170787,2059.1,2058.9,4.85695]
[1742964092699,6.05170787,2059.1,2058.9,4.85676]
[1742964092899,4.91030312,2059.1,2058.8,19.35718]
[1742964093198,4.91030312,2059.1,2058.9,9.71359]
[1742964093397,4.91030312,2059.1,2058.9,4.85679]
[1742964093604,4.91030312,2059.1,2058.9,4.85678]
[1742964093900,4.91030312,2059.1,2059.0,4.85672]
[1742964100909,0.35730312,2059.1,2059.0,5.92763308]
[1742964101071,0.35730312,2059.1,2059.0,6.71553308]
[1742964101266,4.553,2059.5,2059.2,4.8561]
[1742964101472,0.35619707,2059.4,2059.2,4.8561]
[1742964101794,0.35619707,2059.4,2059.3,4.85601]
[1742964103410,0.35619707,2059.4,2059.3,7.75656275]
[1742964103794,5.321,2059.9,2059.7,4.85501]
[1742964104285,33.892,2060.1,2059.8,4.85484]
[1742964104606,1.14140475,2060.0,2059.7,4.85503]
[1742964104907,1.43940627,2059.9,2059.7,4.85503]
[1742964105773,0.29800152,2059.9,2059.7,4.85498]
[1742964106385,1.43940627,2059.9,2059.7,9.70996]
[1742964106917,0.29800152,2059.9,2059.8,4.85484]
[1742964107269,35.92857831,2060.1,2059.8,4.85484]
[1742964107508,0.29902037,2060.0,2059.8,4.85484]
[1742964108306,0.29902037,2060.0,2059.8,9.70948]
[1742964108519,0.29902037,2060.0,2059.8,9.70938]
[1742964108821,0.29902037,2060.0,2059.9,4.8546]
[1742964109508,0.29902037,2060.0,2059.9,5.904314]
[1742964109807,0.29902037,2060.0,2059.9,6.692214]
[1742964110111,0.29902037,2060.0,2059.9,21.24075361]
[1742964110294,0.29902037,2060.0,2059.9,21.192214]
[1742964110699,0.29902037,2060.0,2059.9,27.3322102]
[1742964112413,0.29902037,2060.0,2059.9,12.0443102]
[1742964119293,0.29902037,2060.0,2059.9,6.1399962]
[1742964120021,0.29902037,2060.0,2059.9,10.9945962]
[1742964120811,0.29902037,2060.0,2059.9,4.8546]
[1742964120989,0.29902037,2060.0,2059.8,9.70937]
[1742964121318,0.29902037,2060.0,2059.8,4.85464]
[1742964126523,0.29902037,2060.0,2059.9,4.8546]
[1742964128826,0.29902037,2060.0,2059.9,5.6556]
[1742964129123,0.29902037,2060.0,2059.9,21.692129]
[1742964130599,1.1,2060.1,2060.0,5.67246]
[1742964130998,1.39823939,2060.1,2060.0,5.67246]
[1742964132013,1.39823939,2060.1,2060.0,6.81225801]
[1742964132436,1.1,2060.1,2060.0,6.81225801]
[1742964132742,1.1,2060.1,2060.0,23.73206033]
[1742964132944,1.1,2060.1,2060.0,22.59226232]
[1742964135342,1.1,2060.1,2060.0,28.73225852]
[1742964135517,1e-05,2060.1,2060.0,32.28225852]
[1742964136645,1e-05,2060.1,2060.0,32.65251273]
[1742964138841,1e-05,2060.1,2060.0,32.10251273]
[1742964139046,1e-05,2060.1,2060.0,33.0926791]
[1742964142945,1e-05,2060.1,2060.0,29.72242489]
[1742964143745,1e-05,2060.1,2060.0,28.90432489]
[1742964143953,0.30206113,2060.1,2060.0,28.90432489]
[1742964144153,1e-05,2060.1,2060.0,28.90432489]
[1742964144848,0.30206113,2060.1,2060.0,28.90432489]
[1742964145055,1e-05,2060.1,2060.0,28.90432489]
[1742964145251,0.30206113,2060.1,2060.0,28.90432489]
[1742964146251,1e-05,2060.1,2060.0,28.90432489]
[1742964147639,0.30169859,2060.1,2060.0,28.90432489]
[1742964147844,1e-05,2060.1,2060.0,28.90432489]
[1742964148044,0.30160799,2060.1,2060.0,28.90432489]
[1742964148240,1e-05,2060.1,2060.0,28.90432489]
[1742964148441,0.30160799,2060.1,2060.0,28.90432489]
[1742964148822,1e-05,2060.1,2060.0,28.90432489]
[1742964149222,0.30160799,2060.1,2060.0,28.90432489]
[1742964149628,1e-05,2060.1,2060.0,28.90432489]
[1742964150740,0.30160799,2060.1,2060.0,28.90432489]
[1742964151060,1e-05,2060.1,2060.0,26.48452257]
[1742964151260,0.30160799,2060.1,2060.0,26.48452257]
[1742964151456,1e-05,2060.1,2060.0,26.48452257]
[1742964151658,0.30160799,2060.1,2060.0,26.48452257]
[1742964151862,1e-05,2060.1,2060.0,26.48452257]
[1742964152058,0.30160799,2060.1,2060.0,26.48452257]
[1742964152259,1e-05,2060.1,2060.0,26.48452257]
[1742964152449,0.30160799,2060.1,2060.0,26.48452257]
[1742964152765,0.30160799,2060.1,2060.0,28.34840113]
[1742964155067,1e-05,2060.1,2060.0,28.34840113]
[1742964156769,0.3014037,2060.1,2060.0,28.34840113]
[1742964157069,0.3014037,2060.1,2060.0,26.48452257]
[1742964157267,0.3014037,2060.1,2060.0,10.9943562]
[1742964157458,1.0748037,2060.1,2060.0,10.9943562]
[1742964158775,1.0748037,2060.1,2060.0,4.85436]
[1742964158974,1.0748037,2060.1,2059.9,5.84475265]
[1742964159173,2.21501451,2060.1,2059.9,5.84475265]
[1742964159381,2.21501451,2060.1,2059.9,5.84484265]
[1742964160286,2.21501451,2060.1,2059.8,4.85483]
[1742964160287,1.14021081,2060.0,2059.8,4.85483]
[1742964160591,0.29869869,2059.9,2059.8,4.85483]
[1742964161159,0.77341,2060.1,2059.8,4.85483]
[1742964161340,0.29869869,2059.9,2059.8,4.85483]
[1742964161546,2.03636678,2060.0,2059.7,25.4950462]
[1742964161743,2.83536678,2059.8,2059.5,6.1399962]
[1742964161953,0.29638785,2059.7,2059.3,4.85598]
[1742964162153,0.29638785,2059.7,2059.4,14.5]
[1742964162399,12.24029678,2059.8,2059.4,19.35577]
[1742964162601,0.29514005,2059.6,2059.4,19.35577]
[1742964162762,1.70948968,2059.7,2059.4,19.35577]
[1742964163123,0.29475499,2059.5,2059.4,4.85577]
[1742964163259,7.38536678,2059.8,2059.4,4.85577]
[1742964163455,0.29475499,2059.5,2059.4,4.85577]
[1742964163659,12.24020678,2059.8,2059.4,4.85577]
[1742964163888,1.09332348,2059.5,2059.3,4.85583]
[1742964164097,0.799,2059.5,2059.3,4.85583]
[1742964164296,0.29226034,2059.4,2059.3,4.85583]
[1742964164503,0.29226034,2059.4,2059.2,19.35621]
[1742964164999,0.29226034,2059.4,2059.3,4.85601]
[1742964167996,0.29226034,2059.4,2059.3,14.5]
[1742964171522,2.32862712,2059.4,2059.3,14.5]
[1742964171720,0.8062,2059.3,2059.1,6.1399962]
[1742964172027,0.29277311,2059.2,2059.1,6.1399962]
[1742964172384,0.8062,2059.3,2059.1,10.9964862]
[1742964172591,0.29277311,2059.2,2059.1,10.9964862]
[1742964172915,0.8062,2059.3,2059.1,10.9964862]
[1742964173126,0.29277311,2059.2,2059.1,10.9964862]
[1742964173425,0.8062,2059.3,2059.1,10.9964862]
[1742964173597,0.29277311,2059.2,2059.1,4.85649]
[1742964173798,0.29277311,2059.2,2059.0,4.85669]
[1742964173799,0.29277311,2059.2,2059.0,9.71331]
[1742964174010,0.8062,2059.3,2059.0,4.85662]
[1742964174211,0.29238796,2059.1,2059.0,4.85662]
[1742964174527,0.8062,2059.3,2059.0,4.85662]
[1742964174728,5.06162868,2059.3,2059.0,4.85662]
[1742964175090,0.29211433,2059.2,2059.0,4.85662]
[1742964175290,2.32848111,2059.2,2058.9,10.9968562]
[1742964175515,0.29095825,2059.1,2058.9,10.9968562]
[1742964175729,0.29095825,2059.1,2058.9,25.4968562]
[1742964176525,0.29095825,2059.1,2058.9,30.3536162]
[1742964176827,0.29095825,2059.1,2058.9,25.4967562]
[1742964177028,0.29095825,2059.1,2058.9,20.6399962]
[1742964177234,0.29095825,2059.1,2058.9,25.4969262]
[1742964177394,0.29095825,2059.1,2058.9,10.9969262]
[1742964177590,0.29095825,2059.1,2058.9,15.8537662]
[1742964177823,0.29095825,2059.1,2058.9,10.9968362]
[1742964178405,0.29095825,2059.1,2058.9,10.9967662]
[1742964179234,0.29095825,2059.1,2059.0,4.85672]
[1742964179596,8.3582,2059.3,2059.0,4.85672]
[1742964179824,0.28914359,2059.1,2059.0,4.85672]